bitfinex/quotes_SOLUSD_20240711
["timestamp","ask_amount","ask_price","bid_price","bid_amount"]
[1720663464255,0.3465477,143.46,143.45,1.3906213]
[1720663465833,0.3465477,143.46,143.45,1.39359136]
[1720663466038,0.3465477,143.46,143.44,45.0]
[1720663466656,0.3465477,143.46,143.45,0.17]
[1720663466836,0.3465477,143.46,143.44,56.47]
[1720663467044,0.3465477,143.46,143.44,45.0]
[1720663468230,0.3465477,143.46,143.43,31.47]
[1720663468430,0.3465477,143.46,143.43,20.0]
[1720663469432,11.8165477,143.46,143.43,20.0]
[1720663469732,0.3465477,143.46,143.44,45.0]
[1720663469931,0.3465477,143.46,143.42,15.2715]
[1720663470145,11.8165477,143.46,143.42,15.2715]
[1720663470432,11.47,143.45,143.42,15.2715]
[1720663470831,0.3465477,143.46,143.42,15.2715]
[1720663470832,11.8165477,143.46,143.42,15.2715]
[1720663471337,11.8165477,143.46,143.43,45.0]
[1720663471837,0.3465477,143.46,143.43,45.0]
[1720663472956,0.3465477,143.46,143.43,56.47]
[1720663473453,0.3465477,143.46,143.43,45.0]
[1720663473861,0.3465477,143.46,143.44,11.64]
[1720663474037,0.3465477,143.46,143.43,56.47]
[1720663474349,0.3465477,143.46,143.42,15.2715]
[1720663474539,11.8165477,143.46,143.42,15.2715]
[1720663475345,0.3465477,143.46,143.42,26.7415]
[1720663475542,11.47,143.45,143.42,15.2715]
[1720663475852,0.3465477,143.46,143.39,15.3472]
[1720663475853,11.47,143.43,143.39,15.3472]
[1720663476049,11.47,143.41,143.36,15.3472]
[1720663476256,11.47,143.41,143.36,26.8172]
[1720663477242,11.47,143.42,143.36,15.3472]
[1720663477442,11.47,143.42,143.37,11.47]
[1720663477648,1.75832434,143.46,143.39,0.17]
[1720663477851,11.47,143.45,143.4,11.47]
[1720663478031,11.47,143.45,143.41,45.0]
[1720663478236,11.47,143.45,143.41,56.47]
[1720663478442,11.47,143.45,143.41,45.0]
[1720663479843,11.47,143.43,143.41,45.0]
[1720663480071,11.47,143.42,143.41,45.0]
[1720663481239,1.75832434,143.46,143.41,45.0]
[1720663481779,11.47,143.45,143.41,45.0]
[1720663482433,11.47,143.44,143.41,45.0]
[1720663483744,1.75832434,143.46,143.4,45.0]
[1720663483945,0.3465477,143.46,143.4,45.0]
[1720663484142,11.47,143.44,143.41,20.0]
[1720663484356,11.47,143.44,143.42,45.0]
[1720663485553,11.47,143.44,143.37,0.17]
[1720663485758,0.3465477,143.46,143.37,45.17]
[1720663485957,11.47,143.43,143.38,11.47]
[1720663486159,11.47,143.44,143.39,56.47]
[1720663487758,11.47,143.45,143.4,31.64]
[1720663487969,11.8165477,143.46,143.41,11.47]
[1720663488172,11.8165477,143.46,143.4,20.51955905]
[1720663488173,11.8165477,143.46,143.42,45.3495103]
[1720663488373,11.8165477,143.46,143.43,0.34948593]
[1720663488573,11.47,143.45,143.43,0.34948593]
[1720663489867,11.47,143.45,143.42,45.0]
[1720663490168,11.47,143.45,143.43,0.34948631]
[1720663490556,11.47,143.45,143.42,45.0]
[1720663490755,11.47,143.45,143.41,45.0]
[1720663490971,11.8165477,143.46,143.41,56.47]
[1720663491787,0.3465477,143.46,143.43,11.47]
[1720663492153,0.3465477,143.46,143.44,45.0]
[1720663492356,0.3465477,143.46,143.44,56.47]
[1720663493264,0.3465477,143.46,143.44,45.0]
[1720663495457,0.3465477,143.46,143.43,45.0]
[1720663497356,11.47,143.45,143.41,15.1014]
[1720663497553,11.47,143.44,143.41,15.1014]
[1720663498272,11.47,143.44,143.42,1.39354299]
[1720663498579,11.47,143.43,143.41,15.1014]
[1720663498760,11.47,143.43,143.39,15.8967]
[1720663499179,11.47,143.44,143.39,27.3667]
[1720663499777,11.47,143.44,143.4,45.0]
[1720663500071,11.47,143.44,143.39,15.8967]
[1720663500261,11.47,143.42,143.34,16.4851]
[1720663500576,11.47,143.41,143.34,16.4851]
[1720663500808,0.17,143.45,143.36,11.47]
[1720663500809,1.58177664,143.45,143.36,11.47]
[1720663501082,11.47,143.44,143.39,11.47]
[1720663501256,0.3465477,143.46,143.39,11.47]
[1720663501458,11.47,143.44,143.39,11.47]
[1720663501659,11.47,143.44,143.4,45.0]
[1720663501860,11.47,143.43,143.4,45.0]
[1720663502078,11.47,143.42,143.36,11.47]
[1720663502374,11.47,143.42,143.37,76.47]
[1720663502580,11.47,143.42,143.37,56.47]
[1720663502769,1.75832434,143.46,143.37,45.0]
[1720663502969,11.47,143.42,143.37,56.47]
[1720663503168,1.75177664,143.45,143.37,56.47]
[1720663503372,11.47,143.42,143.37,56.47]
[1720663503786,1.75177664,143.45,143.37,56.47]
[1720663503976,11.47,143.42,143.37,56.47]
[1720663504163,0.3465477,143.46,143.38,11.47]
[1720663504364,0.3465477,143.46,143.39,56.47]
[1720663504679,11.47,143.44,143.4,45.0]
[1720663505574,0.3465477,143.46,143.4,45.0]
[1720663505979,0.3465477,143.46,143.4,72.2016]
[1720663506171,0.3465477,143.46,143.42,11.47]
[1720663506479,0.3465477,143.46,143.43,56.47]
[1720663507385,0.3465477,143.46,143.44,11.47]
[1720663507563,0.3465477,143.46,143.45,45.0]
[1720663508362,11.8165477,143.46,143.41,20.0]
[1720663508574,11.47,143.44,143.42,45.0]
[1720663508771,0.3465477,143.46,143.41,45.0]
[1720663509082,11.8165477,143.46,143.41,56.47]
[1720663509384,11.47,143.45,143.41,45.0]
[1720663509682,0.3465477,143.46,143.41,45.0]
[1720663509885,11.8165477,143.46,143.41,45.0]
[1720663510270,11.47,143.45,143.41,45.0]
[1720663510669,0.3465477,143.46,143.41,45.0]
[1720663510874,0.3465477,143.46,143.41,56.47]
[1720663511076,11.8165477,143.46,143.41,56.47]
[1720663511806,0.3465477,143.46,143.42,11.47]
[1720663511987,0.3465477,143.46,143.43,45.0]
[1720663512183,11.8165477,143.46,143.43,45.0]
[1720663512383,11.8165477,143.46,143.42,45.0]
[1720663512689,11.47,143.44,143.41,45.0]
[1720663512992,11.47,143.45,143.41,45.0]
[1720663514297,11.8165477,143.46,143.41,56.47]
[1720663515072,11.47,143.44,143.4,15.7316]
[1720663515377,11.47,143.43,143.4,15.7316]
[1720663515914,0.3465477,143.46,143.4,15.7316]
[1720663516203,11.47,143.43,143.4,15.7316]
[1720663516384,11.47,143.44,143.4,15.7316]
[1720663517988,11.47,143.44,143.41,45.0]
[1720663518212,11.47,143.43,143.41,45.0]
[1720663518683,0.3465477,143.46,143.41,45.0]
[1720663518885,11.47,143.44,143.41,45.0]
[1720663519385,11.47,143.42,143.4,15.7316]
[1720663519805,11.47,143.43,143.4,15.7316]
[1720663520013,11.47,143.43,143.41,45.0]
[1720663520785,11.47,143.44,143.41,45.0]
[1720663521307,11.47,143.42,143.4,15.7316]
[1720663521685,11.47,143.42,143.37,27.0989]
[1720663521884,11.47,143.42,143.38,20.0]
[1720663522519,11.47,143.42,143.39,45.0]
[1720663523094,11.47,143.43,143.39,45.0]
[1720663523946,1.41177664,143.45,143.39,45.0]
[1720663524107,11.47,143.43,143.39,45.0]
[1720663525835,11.47,143.44,143.39,56.47]
[1720663526328,0.3465477,143.46,143.4,11.64]
[1720663526532,11.47,143.45,143.41,45.0]
[1720663527535,11.8165477,143.46,143.41,45.0]
[1720663528104,11.47,143.45,143.41,45.0]
[1720663528801,0.3465477,143.46,143.41,45.0]
[1720663529025,11.47,143.45,143.38,20.0]
[1720663529607,11.47,143.45,143.39,0.17]
[1720663530632,11.47,143.45,143.39,45.17]
[1720663530833,0.3465477,143.46,143.41,0.17]
[1720663531018,11.47,143.45,143.41,45.0]
[1720663532936,0.3465477,143.46,143.41,45.0]
[1720663533231,11.47,143.45,143.41,45.0]
[1720663534136,11.8165477,143.46,143.41,45.0]
[1720663535235,11.47,143.45,143.41,45.0]
[1720663535903,1.41177664,143.44,143.37,15.6289]
[1720663536119,11.47,143.42,143.37,27.0989]
[1720663536730,11.47,143.42,143.37,15.6289]
[1720663537109,11.47,143.42,143.37,27.0989]
[1720663537332,11.47,143.43,143.38,31.47]
[1720663537508,11.47,143.43,143.39,45.0]
[1720663537839,11.47,143.44,143.39,56.47]
[1720663538206,11.47,143.43,143.39,45.0]
[1720663538408,1.75832434,143.46,143.38,20.0]
[1720663538607,11.47,143.41,143.37,15.6289]
[1720663538818,1.58177664,143.45,143.37,15.6289]
[1720663539030,11.47,143.41,143.37,15.6289]
[1720663539213,11.47,143.42,143.37,27.0989]
[1720663539526,11.47,143.42,143.37,15.6289]
[1720663539727,11.47,143.4,143.37,15.6289]
[1720663539933,11.47,143.39,143.37,15.6289]
[1720663540814,1.41177664,143.42,143.37,15.6289]
[1720663542229,1.41177664,143.42,143.38,45.0]
[1720663542527,1.41177664,143.42,143.37,15.6289]
[1720663542528,11.47,143.4,143.37,15.6289]
[1720663542731,0.3465477,143.46,143.38,45.0]
[1720663542904,11.47,143.41,143.39,45.0]
[1720663543333,11.47,143.41,143.38,45.0]
[1720663544935,1.75832434,143.46,143.38,45.0]
[1720663545136,11.47,143.41,143.38,45.0]
[1720663545629,11.47,143.4,143.38,45.0]
[1720663545829,1.58177664,143.45,143.38,45.0]
[1720663546229,11.47,143.41,143.38,45.0]
[1720663548365,11.47,143.4,143.38,45.0]
[1720663548815,1.41177664,143.42,143.38,45.0]
[1720663549012,11.47,143.39,143.37,15.6289]
[1720663549216,11.47,143.39,143.38,45.0]
[1720663549418,11.47,143.39,143.37,15.6289]
[1720663550216,1.41177664,143.42,143.37,15.6289]
[1720663550418,11.47,143.4,143.37,15.6289]
[1720663550751,1.41177664,143.42,143.37,15.6289]
[1720663551045,0.17,143.43,143.38,45.0]
[1720663551046,11.47,143.41,143.38,45.0]
[1720663553363,11.47,143.4,143.38,45.0]
[1720663553854,1.41177664,143.42,143.38,45.0]
[1720663554055,11.47,143.39,143.31,23.73282735]
[1720663554253,11.47,143.36,143.31,27.9849]
[1720663554435,11.47,143.35,143.31,16.5149]
[1720663554643,11.47,143.34,143.31,16.5149]
[1720663554945,11.47,143.35,143.31,16.5149]
[1720663556333,11.47,143.36,143.31,27.9849]
[1720663556646,11.47,143.36,143.32,45.0]
[1720663557745,1.41177664,143.4,143.33,0.17]
[1720663557955,11.47,143.37,143.33,0.17]
[1720663558262,11.47,143.37,143.32,56.47]
[1720663558757,1.41177664,143.4,143.33,0.17]
[1720663559052,11.47,143.36,143.32,45.0]
[1720663560255,11.47,143.35,143.32,45.0]
[1720663560761,0.17,143.39,143.28,2.80136015]
[1720663560966,0.17,143.39,143.27,22.88450513]
[1720663560967,11.47,143.36,143.27,16.0638]
[1720663561259,11.47,143.29,143.27,16.0638]
[1720663561432,11.47,143.28,143.27,16.0638]
[1720663562163,11.47,143.29,143.27,16.0638]
[1720663562544,11.47,143.28,143.27,16.0638]
[1720663563238,11.47,143.28,143.24,21.5513]
[1720663563432,11.47,143.27,143.24,15.5378]
[1720663563637,11.47,143.26,143.24,15.5378]
[1720663565835,1.41177664,143.28,143.21,16.6653]
[1720663566042,11.47,143.25,143.22,45.0]
[1720663566242,11.47,143.24,143.21,16.6653]
[1720663567873,11.47,143.24,143.22,45.0]
[1720663568244,12.88177664,143.23,143.17,16.464]
[1720663568459,11.47,143.22,143.17,27.934]
[1720663568670,11.47,143.18,143.17,16.294]
[1720663568960,11.47,143.19,143.14,11.47]
[1720663569145,11.47,143.21,143.16,11.47]
[1720663569348,11.47,143.21,143.17,16.294]
[1720663569850,6.2468,143.26,143.14,6.6581]
[1720663569851,11.47,143.19,143.14,6.6581]
[1720663570056,11.47,143.18,143.13,27.764]
[1720663570251,11.47,143.17,143.13,16.294]
[1720663570438,1.41177664,143.21,143.13,27.764]
[1720663570439,11.47,143.18,143.13,27.764]
[1720663570765,1.41177664,143.21,143.13,27.764]
[1720663570949,1.41177664,143.2,143.13,27.764]
[1720663571663,1.41177664,143.2,143.13,16.294]
[1720663571879,11.47,143.16,143.13,16.294]
[1720663572353,11.47,143.17,143.14,1.39370695]
[1720663572663,6.2468,143.19,143.13,16.294]
[1720663572863,11.47,143.17,143.13,16.294]
[1720663573162,1.41177664,143.18,143.14,45.0]
[1720663573467,11.47,143.16,143.14,45.0]
[1720663573761,11.47,143.16,143.13,16.294]
[1720663574265,1.41177664,143.15,143.11,0.1]
[1720663574444,6.2468,143.19,143.11,0.1]
[1720663574445,11.47,143.13,143.11,0.1]
[1720663574765,11.47,143.12,143.11,0.1]
[1720663575061,1.41177664,143.16,143.11,0.1]
[1720663575263,11.47,143.16,143.11,11.57]
[1720663575766,1.41177664,143.18,143.11,0.1]
[1720663575959,11.47,143.16,143.11,11.57]
[1720663576168,1.41177664,143.17,143.12,45.0]
[1720663576169,11.47,143.15,143.12,45.0]
[1720663576367,11.47,143.15,143.11,0.1]
[1720663576542,11.47,143.13,143.11,45.1]
[1720663576744,11.47,143.13,143.11,0.1]
[1720663577058,11.47,143.12,143.11,0.1]
[1720663577745,11.47,143.13,143.11,0.1]
[1720663578146,11.47,143.14,143.11,0.1]
[1720663578467,11.47,143.12,143.1,45.1]
[1720663578695,0.34,143.17,143.1,0.1]
[1720663578966,11.47,143.12,143.1,0.1]
[1720663579349,1.41177664,143.14,143.1,0.1]
[1720663579667,11.47,143.11,143.1,0.1]
[1720663579865,11.47,143.12,143.1,0.1]
[1720663580464,11.47,143.11,143.1,0.1]
[1720663580770,1.58177664,143.16,143.1,0.1]
[1720663580961,11.47,143.11,143.1,0.1]
[1720663581142,11.47,143.12,143.1,0.1]
[1720663581343,11.47,143.11,143.1,0.1]
[1720663581542,11.47,143.12,143.1,0.1]
[1720663581949,1.41177664,143.14,143.1,0.1]
[1720663582251,11.47,143.11,143.1,0.1]
[1720663584597,11.81,143.11,143.1,0.1]
[1720663585678,11.47,143.11,143.1,0.1]
[1720663586072,11.64,143.11,143.1,0.1]
[1720663586381,11.47,143.11,143.1,0.1]
[1720663586572,11.81,143.11,143.1,0.1]
[1720663586770,11.81,143.11,143.03,17.6766]
[1720663586771,11.81,143.11,143.03,11.47]
[1720663586967,11.47,143.07,143.01,0.1]
[1720663587171,1.58177664,143.1,143.01,31.57]
[1720663587172,11.47,143.06,143.01,31.57]
[1720663587588,1.58177664,143.1,143.01,20.1]
[1720663587776,11.47,143.11,143.01,52.59]
[1720663587976,11.47,143.11,143.06,11.47]
[1720663588291,11.47,143.1,143.05,11.47]
[1720663588476,11.47,143.1,143.06,45.0]
[1720663588680,1.41177664,143.09,143.06,45.0]
[1720663588883,11.47,143.08,143.06,45.0]
[1720663589898,11.47,143.08,143.04,26.905]
[1720663589899,11.47,143.08,143.05,45.0]
[1720663590786,1.41177664,143.07,143.04,15.435]
[1720663591085,11.47,143.05,143.01,35.535]
[1720663591306,11.47,143.05,143.01,15.535]
[1720663591610,11.47,143.06,143.01,27.005]
[1720663591766,11.47,143.07,143.02,11.47]
[1720663591968,1.41177664,143.1,143.03,11.47]
[1720663592175,12.88177664,143.1,143.04,45.0]
[1720663592392,11.47,143.1,143.05,11.47]
[1720663592689,11.47,143.09,143.06,45.0]
[1720663592891,1.41177664,143.14,143.06,45.0]
[1720663593097,11.47,143.09,143.05,45.0]
[1720663594108,12.88177664,143.08,143.05,45.0]
[1720663594418,11.47,143.06,143.01,15.535]
[1720663594574,11.47,143.05,143.02,20.0]
[1720663594999,11.47,143.06,143.01,27.005]
[1720663595196,11.47,143.06,143.01,15.535]
[1720663595499,12.88177664,143.05,143.01,15.535]
[1720663595783,1.41177664,143.08,143.01,27.005]
[1720663595993,11.47,143.07,143.02,11.47]
[1720663596294,11.47,143.05,143.01,15.535]
[1720663596591,0.17,143.07,143.01,15.535]
[1720663596787,11.47,143.05,143.01,15.535]
[1720663597169,0.17,143.1,143.01,15.535]
[1720663597390,11.47,143.05,143.01,15.535]
[1720663597598,11.47,143.05,143.02,45.0]
[1720663598484,11.47,143.05,143.01,15.535]
[1720663598683,11.47,143.04,143.01,15.535]
[1720663599281,11.47,143.05,143.01,15.535]
[1720663600201,11.47,143.05,143.02,45.0]
[1720663600404,11.47,143.05,143.01,15.535]
[1720663600700,11.47,143.05,143.02,45.0]
[1720663602102,11.47,143.05,143.01,15.535]
[1720663602312,11.47,143.04,143.01,15.535]
[1720663602480,11.47,143.05,143.01,15.535]
[1720663603184,11.47,143.05,143.01,27.005]
[1720663603715,2.32177664,143.1,143.02,45.0]
[1720663604182,45.88,143.08,143.01,15.535]
[1720663604383,11.47,143.05,143.01,15.535]
[1720663604794,11.47,143.06,143.01,27.005]
[1720663605113,1.41177664,143.1,143.01,27.005]
[1720663605421,11.47,143.07,143.02,11.47]
[1720663605712,1.41177664,143.1,143.03,45.0]
[1720663605883,11.47,143.08,143.03,56.47]
[1720663606296,1.41177664,143.11,143.04,11.47]
[1720663606498,11.47,143.09,143.05,45.0]
[1720663607005,11.47,143.08,143.05,45.0]
[1720663607189,1.41177664,143.07,143.04,45.0]
[1720663607383,1.41177664,143.07,143.01,21.8715]
[1720663607384,11.47,143.06,143.01,33.3415]
[1720663607591,0.17,143.1,143.02,45.0]
[1720663607811,1.41177664,143.1,143.02,45.0]
[1720663608110,11.47,143.06,143.02,56.47]
[1720663608492,11.47,143.07,143.02,56.47]
[1720663608695,11.47,143.08,143.03,11.47]
[1720663609316,11.47,143.06,143.01,33.3415]
[1720663609480,0.17,143.09,143.01,33.3415]
[1720663609683,11.47,143.06,143.01,21.8715]
[1720663609885,11.47,143.06,143.01,33.3415]
[1720663610210,1.41177664,143.09,143.02,11.47]
[1720663610404,11.47,143.08,143.03,11.47]
[1720663610608,1.41177664,143.07,143.03,11.47]
[1720663610908,11.47,143.06,143.04,45.0]
[1720663611203,1.41177664,143.11,143.03,56.47]
[1720663611404,1.41177664,143.11,143.05,11.47]
[1720663611596,11.47,143.1,143.06,45.0]
[1720663612308,11.47,143.09,143.06,45.0]
[1720663612497,1.41177664,143.11,143.05,45.0]
[1720663612498,11.47,143.08,143.05,45.0]
[1720663612697,1.41177664,143.11,143.04,45.0]
[1720663612898,11.47,143.08,143.04,45.0]
[1720663613817,11.47,143.09,143.04,56.47]
[1720663615093,11.47,143.08,143.04,45.0]
[1720663616895,11.47,143.08,143.03,11.47]
[1720663616896,11.47,143.08,143.02,0.17]
[1720663617099,11.47,143.07,143.02,31.64]
[1720663617413,11.47,143.06,143.01,33.3415]
[1720663617613,11.47,143.05,143.01,15.535]
[1720663617916,1.41177664,143.11,143.01,27.005]
[1720663618094,11.47,143.07,143.02,11.47]
[1720663618706,1.75177664,143.1,143.02,11.47]
[1720663618921,1.58177664,143.1,143.03,45.0]
[1720663619105,11.47,143.08,143.03,56.47]
[1720663619291,11.47,143.07,143.03,45.0]
[1720663620314,1.41177664,143.1,143.03,56.47]
[1720663620512,1.41177664,143.14,143.06,11.47]
[1720663620690,11.47,143.11,143.06,11.47]
[1720663620889,11.47,143.11,143.07,45.0]
[1720663621096,46.28,143.15,143.05,15.665]
[1720663621097,11.47,143.08,143.05,15.665]
[1720663621392,46.28,143.15,143.02,26.9515]
[1720663621393,11.47,143.06,143.02,26.9515]
[1720663621590,11.47,143.06,143.02,15.4815]
[1720663621801,11.47,143.05,143.02,15.4815]
[1720663622206,11.47,143.06,143.02,15.4815]
[1720663622412,0.17,143.11,143.02,15.4815]
[1720663622596,11.47,143.07,143.02,26.9515]
[1720663623296,11.47,143.08,143.03,56.47]
[1720663623697,1.41177664,143.1,143.03,45.0]
[1720663623919,11.47,143.07,143.03,45.0]
[1720663625735,1.41177664,143.12,143.03,45.0]
[1720663625919,11.47,143.07,143.02,26.9515]
[1720663626091,11.47,143.06,143.02,15.4815]
[1720663626297,11.47,143.07,143.02,26.9515]
[1720663626498,1.41177664,143.12,143.03,11.64]
[1720663626694,11.47,143.09,143.04,11.47]
[1720663626934,12.88177664,143.08,143.02,26.9515]
[1720663627132,12.88177664,143.07,143.02,26.9515]
[1720663627337,8.13387664,143.06,143.01,0.1]
[1720663627642,11.47,143.02,143.01,0.1]
[1720663628000,11.64,143.02,143.01,0.1]
[1720663628198,57.52,143.02,143.01,0.1]
[1720663628431,11.81,143.02,143.01,0.1]
[1720663628816,11.47,143.02,143.01,0.1]
[1720663629525,1.41177664,143.05,143.01,0.1]
[1720663629723,11.47,143.02,143.01,0.1]
[1720663630334,1.41177664,143.04,143.01,0.1]
[1720663630507,1.41177664,143.05,143.01,0.1]
[1720663630710,24.48177664,143.08,143.01,0.1]
[1720663630900,1.41177664,143.08,143.01,0.1]
[1720663631117,0.4,143.12,143.01,0.1]
[1720663631118,24.88177664,143.12,143.01,0.1]
[1720663631637,24.88177664,143.12,143.01,0.27]
[1720663631844,24.88177664,143.12,143.01,20.27]
[1720663632000,24.88177664,143.12,143.02,45.0]
[1720663633026,0.51,143.11,143.02,45.0]
[1720663633203,1.41177664,143.1,143.02,45.0]
[1720663633405,0.34,143.09,143.02,45.0]
[1720663633616,1.58177664,143.08,143.02,45.0]
[1720663633824,1.58177664,143.07,143.02,45.0]
[1720663634024,29.2628,143.06,143.01,0.1]
[1720663634232,1.58177664,143.05,143.01,0.1]
[1720663634428,24.65177664,143.04,143.01,0.1]
[1720663634727,0.17,143.03,143.01,0.1]
[1720663635033,1.58177664,143.03,143.01,0.1]
[1720663635751,1.41177664,143.04,143.01,0.1]
[1720663635911,0.17,143.03,143.01,0.1]
[1720663636112,1.41177664,143.02,143.01,0.1]
[1720663636311,1.58177664,143.02,143.01,0.1]
[1720663636538,1.92177664,143.02,143.01,0.1]
[1720663637227,1.75177664,143.02,143.01,0.1]
[1720663637429,6.5417,143.01,142.96,0.8465477]
[1720663637632,0.17,142.96,142.91,0.1]
[1720663637822,23.07,142.94,142.91,0.1]
[1720663638243,1.41177664,142.93,142.91,0.1]
[1720663638749,1.58177664,142.95,142.91,0.1]
[1720663639841,0.34,142.94,142.91,0.1]
[1720663640045,0.17,142.93,142.91,0.1]
[1720663640239,1.58177664,142.93,142.91,0.1]
[1720663640537,1.41177664,142.95,142.91,0.1]
[1720663640736,23.07,142.97,142.91,0.1]
[1720663641040,1.41177664,142.96,142.91,0.1]
[1720663641244,24.48177664,142.95,142.91,0.1]
[1720663641443,1.41177664,142.94,142.91,0.1]
[1720663642322,23.07,142.97,142.91,15.6279]
[1720663642532,1.41177664,142.96,142.91,15.6279]
[1720663643030,1.41177664,142.96,142.92,45.0]
[1720663643427,1.41177664,142.95,142.92,45.0]
[1720663643635,1.41177664,142.95,142.91,15.6279]
[1720663643839,1.41177664,142.96,142.92,45.0]
[1720663644039,1.41177664,142.96,142.91,15.6279]
[1720663644347,1.41177664,142.95,142.92,45.0]
[1720663644547,1.41177664,142.95,142.91,15.6279]
[1720663645750,1.41177664,142.96,142.91,15.6279]
[1720663645942,1.41177664,142.95,142.91,15.6279]
[1720663646141,1.41177664,142.96,142.92,45.0]
[1720663646528,1.41177664,142.95,142.92,45.0]
[1720663646728,1.41177664,142.95,142.91,15.6279]
[1720663647148,1.41177664,142.96,142.92,45.0]
[1720663647539,1.41177664,142.95,142.92,45.0]
[1720663648246,1.41177664,142.96,142.92,45.0]
[1720663649630,1.41177664,142.95,142.91,15.6279]
[1720663650226,0.34,142.94,142.91,0.1]
[1720663650432,1.41177664,142.93,142.91,0.1]
[1720663650653,0.34,142.94,142.91,0.1]
[1720663650654,1.41177664,142.92,142.91,0.1]
[1720663651570,1.75177664,142.92,142.91,0.1]
[1720663652361,0.17,142.91,142.82,16.1012]
[1720663652647,23.07,142.89,142.82,16.1012]
[1720663652863,1.75177664,142.88,142.82,16.1012]
[1720663653433,1.58177664,142.88,142.82,16.1012]
[1720663653642,1.41177664,142.88,142.83,45.0]
[1720663654131,1.41177664,142.91,142.83,45.0]
[1720663654962,23.07,142.95,142.84,20.0]
[1720663655130,1.41177664,142.94,142.85,45.0]
[1720663655755,1.41177664,142.94,142.86,6.8268]
[1720663655943,1.41177664,142.94,142.87,45.0]
[1720663656142,1.41177664,142.93,142.87,45.0]
[1720663656355,1.41177664,142.95,142.87,45.0]
[1720663657049,0.17,142.94,142.87,45.0]
[1720663657253,1.41177664,142.93,142.87,45.0]
[1720663657435,1.41177664,142.92,142.87,45.0]
[1720663657636,1.58177664,142.94,142.87,45.0]
[1720663657835,0.17,142.93,142.87,45.0]
[1720663659767,1.41177664,142.94,142.87,45.0]
[1720663659937,1.41177664,142.95,142.87,45.0]
[1720663660466,0.34,142.94,142.87,45.0]
[1720663660667,1.41177664,142.95,142.87,45.0]
[1720663661268,0.17,142.94,142.87,45.0]
[1720663662037,0.34,142.94,142.87,45.0]
[1720663662241,0.17,142.94,142.87,45.0]
[1720663662480,1.41177664,142.95,142.88,16.2196]
[1720663662674,1.41177664,142.97,142.89,45.0]
[1720663662864,1.41177664,142.98,142.9,0.17]
[1720663663038,1.41177664,142.99,142.9,0.51]
[1720663663243,1.41177664,143.01,142.93,6.6592]
[1720663663548,1.41177664,143.01,142.94,45.0]
[1720663663745,1.41177664,143.03,142.94,45.0]
[1720663664150,1.41177664,143.03,142.95,0.17]
[1720663664350,1.41177664,143.03,142.94,45.0]